[Event "*** Titled Tuesday Blitz"]
[Site "Chess.com"]
[Date "2019.10.01"]
[Round "5"]
[White "Mr_Sinigami"]
[Black "Qvalda"]
[Result "1-0"]
[WhiteElo "2394"]
[BlackElo "2517"]
[TimeControl "180+2"]
[EndTime "14:12:28 PDT"]
[Termination "Mr_Sinigami won on time"]

1. d4 {[%clk 0:03:01.9]} 1... d5 {[%clk 0:02:57]} 2. Bf4 {[%clk 0:03:00.7]} 2...
Nf6 {[%clk 0:02:56.9]} 3. Nf3 {[%clk 0:03:00.8]} 3... c5 {[%clk 0:02:56.4]} 4.
e3 {[%clk 0:03:01.3]} 4... Nc6 {[%clk 0:02:56.9]} 5. c3 {[%clk 0:03:01.6]} 5...
Qb6 {[%clk 0:02:58.4]} 6. Qb3 {[%clk 0:03:01.3]} 6... c4 {[%clk 0:02:57.5]} 7.
Qc2 {[%clk 0:03:01.9]} 7... Bf5 {[%clk 0:02:58.5]} 8. Qc1 {[%clk 0:03:02.9]}
8... e6 {[%clk 0:02:59.3]} 9. h3 {[%clk 0:03:03.7]} 9... Be7 {[%clk 0:02:59.3]}
10. Be2 {[%clk 0:03:04.9]} 10... O-O {[%clk 0:03:00.2]} 11. O-O {[%clk 0:03:06]}
11... Rfc8 {[%clk 0:03:00.8]} 12. Bd1 {[%clk 0:03:06.6]} 12... Qd8 {[%clk
0:03:01]} 13. Bc2 {[%clk 0:03:07.3]} 13... b5 {[%clk 0:03:02]} 14. Nbd2 {[%clk
0:03:02]} 14... b4 {[%clk 0:02:50]} 15. Re1 {[%clk 0:03:02.4]} 15... bxc3 {[%clk
0:02:45.3]} 16. bxc3 {[%clk 0:03:03]} 16... Qa5 {[%clk 0:02:46.8]} 17. e4 {[%clk
0:03:03]} 17... Ba3 {[%clk 0:02:25.9]} 18. Qd1 {[%clk 0:02:56.4]} 18... dxe4
{[%clk 0:02:25.7]} 19. Nxc4 {[%clk 0:02:54.1]} 19... Qxc3 {[%clk 0:02:22.9]} 20.
Nxa3 {[%clk 0:02:52.8]} 20... Qxa3 {[%clk 0:02:16.2]} 21. Nh4 {[%clk 0:02:43.1]}
21... Rd8 {[%clk 0:02:00.3]} 22. Nxf5 {[%clk 0:02:42.2]} 22... exf5 {[%clk
0:01:58.7]} 23. Be3 {[%clk 0:02:43]} 23... Qd6 {[%clk 0:01:31.6]} 24. Ba4 {[%clk
0:02:19.4]} 24... Nxd4 {[%clk 0:01:31.4]} 25. Rc1 {[%clk 0:02:13.5]} 25... h6
{[%clk 0:01:15.2]} 26. Rc4 {[%clk 0:01:58.5]} 26... Ne6 {[%clk 0:01:11.9]} 27.
Qc1 {[%clk 0:01:42.9]} 27... f4 {[%clk 0:01:01.9]} 28. Rd1 {[%clk 0:01:42]}
28... Qe5 {[%clk 0:01:02.6]} 29. Rxd8+ {[%clk 0:01:42.1]} 29... Rxd8 {[%clk
0:01:02.7]} 30. Bxa7 {[%clk 0:01:42.7]} 30... f3 {[%clk 0:00:28.2]} 31. Be3
{[%clk 0:01:41.9]} 31... fxg2 {[%clk 0:00:24.1]} 32. Kxg2 {[%clk 0:01:12]} 32...
Qf5 {[%clk 0:00:19.4]} 33. Bd1 {[%clk 0:01:06.9]} 33... Ng5 {[%clk 0:00:18.4]}
34. Bxg5 {[%clk 0:00:53.1]} 34... hxg5 {[%clk 0:00:20.3]} 35. Be2 {[%clk
0:00:50.7]} 35... Nd5 {[%clk 0:00:15.5]} 36. Bg4 {[%clk 0:00:51]} 36... Nf4+
{[%clk 0:00:15.5]} 37. Kf1 {[%clk 0:00:47.2]} 37... Qb5 {[%clk 0:00:14.7]} 38.
Kg1 {[%clk 0:00:45.8]} 38... f5 {[%clk 0:00:14.5]} 39. Rc8 {[%clk 0:00:38.2]}
39... Qd7 {[%clk 0:00:02.3]} 40. Rc7 {[%clk 0:00:20.6]} 1-0

[Event "*** Titled Tuesday Blitz"]
[Site "Chess.com"]
[Date "2019.10.01"]
[Round "5"]
[White "swayamsm"]
[Black "WorldChampionBulletChess"]
[Result "1-0"]
[WhiteElo "2442"]
[BlackElo "2087"]
[TimeControl "180+2"]
[EndTime "14:12:40 PDT"]
[Termination "swayamsm won on time"]

1. e4 {[%clk 0:03:01.9]} 1... c5 {[%clk 0:02:58.7]} 2. Nf3 {[%clk 0:02:58.8]}
2... e6 {[%clk 0:03:00.6]} 3. b3 {[%clk 0:02:57.9]} 3... Nc6 {[%clk 0:03:01.4]}
4. Bb2 {[%clk 0:02:58.5]} 4... d5 {[%clk 0:03:03]} 5. exd5 {[%clk 0:02:59.3]}
5... exd5 {[%clk 0:03:04.9]} 6. Bb5 {[%clk 0:03:00.4]} 6... Nf6 {[%clk
0:03:00.5]} 7. O-O {[%clk 0:03:00.3]} 7... Be7 {[%clk 0:03:01.1]} 8. d4 {[%clk
0:03:00.9]} 8... O-O {[%clk 0:03:00.7]} 9. dxc5 {[%clk 0:02:59.6]} 9... Bxc5
{[%clk 0:03:02.6]} 10. Nc3 {[%clk 0:02:57.6]} 10... a6 {[%clk 0:02:44.3]} 11.
Bd3 {[%clk 0:02:57.3]} 11... d4 {[%clk 0:02:44.7]} 12. Na4 {[%clk 0:02:57.3]}
12... b6 {[%clk 0:02:33.1]} 13. Re1 {[%clk 0:02:42.5]} 13... Bg4 {[%clk
0:02:32]} 14. h3 {[%clk 0:02:35.6]} 14... Bh5 {[%clk 0:02:31]} 15. Nxc5 {[%clk
0:02:34.4]} 15... bxc5 {[%clk 0:02:31.5]} 16. g4 {[%clk 0:02:20.6]} 16... Nxg4
{[%clk 0:02:28.5]} 17. hxg4 {[%clk 0:02:19.3]} 17... Bxg4 {[%clk 0:02:30.4]} 18.
Re4 {[%clk 0:02:18.8]} 18... Bh5 {[%clk 0:01:03.4]} 19. Qe2 {[%clk 0:02:06.2]}
19... Bg6 {[%clk 0:00:40.8]} 20. Re1 {[%clk 0:01:52.4]} 20... Qd5 {[%clk
0:00:39]} 21. Rg4 {[%clk 0:01:45.3]} 21... Bh5 {[%clk 0:00:34.1]} 22. Rg3 {[%clk
0:01:44.5]} 22... Qd7 {[%clk 0:00:12]} 23. Qe4 {[%clk 0:01:38.7]} 23... Bg6
{[%clk 0:00:09.9]} 24. Qh4 {[%clk 0:01:39.3]} 24... Rae8 {[%clk 0:00:09.6]} 25.
Rxe8 {[%clk 0:01:38.7]} 25... Rxe8 {[%clk 0:00:11.5]} 26. Bxg6 {[%clk
0:01:33.4]} 26... fxg6 {[%clk 0:00:13.4]} 27. Kh2 {[%clk 0:01:30.7]} 27... Ne7
{[%clk 0:00:12.3]} 28. Ng5 {[%clk 0:01:23.4]} 28... h6 {[%clk 0:00:12.4]} 29.
Qh3 {[%clk 0:01:24.5]} 29... Qc7 {[%clk 0:00:12.2]} 30. Ne6 {[%clk 0:01:24.9]}
30... Qd6 {[%clk 0:00:13.2]} 31. Kg1 {[%clk 0:01:18.8]} 31... Nf5 {[%clk
0:00:14.6]} 32. Rxg6 {[%clk 0:01:19.6]} 32... Rxe6 {[%clk 0:00:14.8]} 33. Rxe6
{[%clk 0:01:18.2]} 33... Qxe6 {[%clk 0:00:16.7]} 34. Qd3 {[%clk 0:01:14.4]}
34... Qe1+ {[%clk 0:00:17.2]} 35. Kg2 {[%clk 0:01:13.9]} 35... Nh4+ {[%clk
0:00:17.7]} 36. Kg3 {[%clk 0:01:14.3]} 36... Qh1 {[%clk 0:00:12.8]} 37. c3
{[%clk 0:01:01]} 37... g5 {[%clk 0:00:13.3]} 38. Kg4 {[%clk 0:00:56.8]} 38...
Qg2+ {[%clk 0:00:12.9]} 39. Kh5 {[%clk 0:00:58.1]} 39... Qc6 {[%clk 0:00:12.5]}
40. cxd4 {[%clk 0:00:56.2]} 40... Qe8+ {[%clk 0:00:13.9]} 41. Kg4 {[%clk
0:00:56.8]} 41... Qe6+ {[%clk 0:00:14.4]} 42. Kg3 {[%clk 0:00:57.1]} 42... Nf5+
{[%clk 0:00:14.9]} 43. Kh2 {[%clk 0:00:56.2]} 43... Qd6+ {[%clk 0:00:15.6]} 44.
Kg1 {[%clk 0:00:57.6]} 44... cxd4 {[%clk 0:00:15.5]} 45. Qxf5 {[%clk 0:00:58.2]}
45... d3 {[%clk 0:00:15.1]} 46. Qc8+ {[%clk 0:00:59]} 46... Kf7 {[%clk
0:00:16.1]} 47. Qf5+ {[%clk 0:00:59.1]} 47... Ke7 {[%clk 0:00:16.6]} 48. Be5
{[%clk 0:00:57.3]} 48... Qc6 {[%clk 0:00:11.2]} 49. Qxd3 {[%clk 0:00:56.8]}
49... Qc1+ {[%clk 0:00:12.1]} 50. Kh2 {[%clk 0:00:58]} 50... Qe1 {[%clk
0:00:11.4]} 51. Qd6+ {[%clk 0:00:57.5]} 51... Ke8 {[%clk 0:00:12.8]} 52. Qe6+
{[%clk 0:00:58.8]} 52... Kf8 {[%clk 0:00:12.3]} 53. Bd6+ {[%clk 0:00:59.7]}
53... Kg7 {[%clk 0:00:13.4]} 54. Qxe1 {[%clk 0:01:01.1]} 1-0

[Event "*** Titled Tuesday Blitz"]
[Site "Chess.com"]
[Date "2019.10.01"]
[Round "5"]
[White "Konavets"]
[Black "Jumbo"]
[Result "0-1"]
[WhiteElo "2943"]
[BlackElo "2805"]
[TimeControl "180+2"]
[EndTime "14:12:44 PDT"]
[Termination "Jumbo won by resignation"]

1. c4 {[%clk 0:02:57.3]} 1... Nf6 {[%clk 0:02:59.7]} 2. Nc3 {[%clk 0:02:55.5]}
2... e5 {[%clk 0:03:00.8]} 3. g3 {[%clk 0:02:56.5]} 3... c6 {[%clk 0:02:59.1]}
4. Nf3 {[%clk 0:02:56.2]} 4... e4 {[%clk 0:03:00.4]} 5. Nd4 {[%clk 0:02:57.5]}
5... Qb6 {[%clk 0:03:02]} 6. Nc2 {[%clk 0:02:58.5]} 6... Bc5 {[%clk 0:02:51.2]}
7. e3 {[%clk 0:02:57.3]} 7... Be7 {[%clk 0:02:50.5]} 8. Bg2 {[%clk 0:02:57.7]}
8... d5 {[%clk 0:02:51.2]} 9. cxd5 {[%clk 0:02:59.6]} 9... cxd5 {[%clk
0:02:52.8]} 10. d3 {[%clk 0:03:00.2]} 10... O-O {[%clk 0:02:45.3]} 11. O-O
{[%clk 0:03:00]} 11... Bg4 {[%clk 0:02:39.5]} 12. Nxd5 {[%clk 0:02:53.2]} 12...
Bxd1 {[%clk 0:02:24.5]} 13. Nxb6 {[%clk 0:02:54.3]} 13... Bxc2 {[%clk
0:02:25.6]} 14. Nxa8 {[%clk 0:02:55.7]} 14... Bxd3 {[%clk 0:01:56.4]} 15. Nc7
{[%clk 0:02:49.3]} 15... Rc8 {[%clk 0:01:54.2]} 16. Rd1 {[%clk 0:02:39.9]} 16...
Rxc7 {[%clk 0:01:54.1]} 17. Bd2 {[%clk 0:02:41.5]} 17... Kf8 {[%clk 0:01:40.9]}
18. Rac1 {[%clk 0:02:42]} 18... Nc6 {[%clk 0:01:42]} 19. Bc3 {[%clk 0:02:41.3]}
19... Ke8 {[%clk 0:01:38.7]} 20. Bf1 {[%clk 0:02:33.4]} 20... Bxf1 {[%clk
0:01:33]} 21. Kxf1 {[%clk 0:02:35.3]} 21... Rd7 {[%clk 0:01:22.3]} 22. Rxd7
{[%clk 0:02:24.4]} 22... Kxd7 {[%clk 0:01:24.2]} 23. Ke2 {[%clk 0:02:25.7]}
23... Ke6 {[%clk 0:01:24.3]} 24. Rd1 {[%clk 0:02:19.3]} 24... g6 {[%clk
0:01:23.1]} 25. a3 {[%clk 0:02:14.8]} 25... Nd5 {[%clk 0:01:24.1]} 26. Bd2
{[%clk 0:02:14.4]} 26... Ne5 {[%clk 0:01:17.2]} 27. Rc1 {[%clk 0:02:15.1]} 27...
Nc6 {[%clk 0:01:04.6]} 28. b4 {[%clk 0:02:12.4]} 28... a6 {[%clk 0:01:05.4]} 29.
Rc4 {[%clk 0:02:13.3]} 29... f5 {[%clk 0:01:06.5]} 30. g4 {[%clk 0:02:12.9]}
30... h5 {[%clk 0:00:49.5]} 31. gxf5+ {[%clk 0:02:13.2]} 31... gxf5 {[%clk
0:00:50.1]} 32. h3 {[%clk 0:02:15.1]} 32... Bd6 {[%clk 0:00:43.8]} 33. Rc1
{[%clk 0:02:15.7]} 33... Be7 {[%clk 0:00:32.2]} 34. Rg1 {[%clk 0:02:16.6]} 34...
Kf7 {[%clk 0:00:33.4]} 35. Rc1 {[%clk 0:02:17.2]} 35... Nb6 {[%clk 0:00:34.1]}
36. Bc3 {[%clk 0:02:16.8]} 36... Nd5 {[%clk 0:00:32.6]} 37. Bb2 {[%clk
0:02:16.9]} 37... Bf6 {[%clk 0:00:25]} 38. Bxf6 {[%clk 0:02:18]} 38... Kxf6
{[%clk 0:00:26.9]} 39. Rc5 {[%clk 0:02:19.3]} 39... Ke6 {[%clk 0:00:28.2]} 40.
b5 {[%clk 0:02:19.6]} 40... axb5 {[%clk 0:00:29.1]} 41. Rxb5 {[%clk 0:02:21.5]}
41... b6 {[%clk 0:00:30.6]} 42. Rb2 {[%clk 0:02:20.2]} 42... Ne5 {[%clk
0:00:31.2]} 43. Rc2 {[%clk 0:02:20]} 43... Kd7 {[%clk 0:00:31.1]} 44. Rc1 {[%clk
0:02:21.3]} 44... Nf3 {[%clk 0:00:27.9]} 45. Kd1 {[%clk 0:02:22.2]} 45... Ng5
{[%clk 0:00:27.1]} 46. Ke2 {[%clk 0:02:21.4]} 46... h4 {[%clk 0:00:23.7]} 47.
Rg1 {[%clk 0:02:21.6]} 47... Nxh3 {[%clk 0:00:23.9]} 48. Rh1 {[%clk 0:02:22.1]}
48... Ng5 {[%clk 0:00:25]} 49. Rxh4 {[%clk 0:02:23.3]} 49... Nf3 {[%clk
0:00:24.5]} 50. Rh6 {[%clk 0:02:23.8]} 50... Ke7 {[%clk 0:00:21.7]} 51. Kd1
{[%clk 0:02:19.8]} 51... Nf6 {[%clk 0:00:20.4]} 52. Rh8 {[%clk 0:02:19.1]} 52...
Ne5 {[%clk 0:00:20.1]} 53. Ke2 {[%clk 0:02:17.8]} 53... Nc4 {[%clk 0:00:20.3]}
54. Ra8 {[%clk 0:02:18.7]} 54... Nd7 {[%clk 0:00:20.9]} 55. a4 {[%clk
0:02:19.8]} 55... Na5 {[%clk 0:00:21.4]} 56. f3 {[%clk 0:02:20.4]} 56... Nc5
{[%clk 0:00:21.1]} 57. fxe4 {[%clk 0:02:21.8]} 57... fxe4 {[%clk 0:00:23]} 58.
Kf2 {[%clk 0:02:22.8]} 58... Nxa4 {[%clk 0:00:23.9]} 59. Kg3 {[%clk 0:02:24.3]}
59... Nc5 {[%clk 0:00:25.4]} 60. Kf4 {[%clk 0:02:25.6]} 60... Nc6 {[%clk
0:00:20.8]} 61. Ra1 {[%clk 0:02:22.9]} 61... Kd6 {[%clk 0:00:22]} 62. Rd1+
{[%clk 0:02:23.6]} 62... Kc7 {[%clk 0:00:23.2]} 63. Rb1 {[%clk 0:02:24.9]} 63...
Na5 {[%clk 0:00:23.6]} 64. Ke5 {[%clk 0:02:25.3]} 64... Kc6 {[%clk 0:00:24.9]}
65. Rh1 {[%clk 0:02:24.9]} 65... Nab3 {[%clk 0:00:24.8]} 66. Rh6+ {[%clk
0:02:23.8]} 66... Kb5 {[%clk 0:00:26.2]} 67. Kd5 {[%clk 0:02:25.7]} 67... Nd2
{[%clk 0:00:23.1]} 68. Rh1 {[%clk 0:02:26.9]} 68... Ncb3 {[%clk 0:00:20]} 69.
Rh6 {[%clk 0:02:20.8]} 69... Ka5 {[%clk 0:00:20.7]} 70. Rh5 {[%clk 0:02:19.7]}
70... Kb4 {[%clk 0:00:18.2]} 71. Kc6 {[%clk 0:02:20.2]} 71... Nc4 {[%clk
0:00:19.2]} 72. Rb5+ {[%clk 0:02:21.1]} 72... Kc3 {[%clk 0:00:20.3]} 73. Kd5
{[%clk 0:02:22.4]} 73... Nbd2 {[%clk 0:00:21]} 74. Ke6 {[%clk 0:02:19.2]} 74...
Kd3 {[%clk 0:00:22.1]} 75. Kf5 {[%clk 0:02:19.4]} 75... Kxe3 {[%clk 0:00:23.2]}
76. Rb4 {[%clk 0:02:18.7]} 76... Kd3 {[%clk 0:00:24.2]} 77. Rb5 {[%clk
0:02:19.9]} 77... e3 {[%clk 0:00:25.5]} 78. Rd5+ {[%clk 0:02:21.4]} 78... Kc3
{[%clk 0:00:26.7]} 79. Rd8 {[%clk 0:02:20.7]} 79... e2 {[%clk 0:00:26.6]} 80.
Re8 {[%clk 0:02:22.2]} 80... Nf3 {[%clk 0:00:27.8]} 0-1

[Event "*** Titled Tuesday Blitz"]
[Site "Chess.com"]
[Date "2019.10.01"]
[Round "5"]
[White "mortngabriel"]
[Black "Andrei_Belozerov"]
[Result "1-0"]
[WhiteElo "2350"]
[BlackElo "2515"]
[TimeControl "180+2"]
[EndTime "14:12:48 PDT"]
[Termination "mortngabriel won by resignation"]

1. e4 {[%clk 0:03:01.6]} 1... c6 {[%clk 0:03:00.3]} 2. d4 {[%clk 0:02:58.1]}
2... d5 {[%clk 0:03:01.4]} 3. e5 {[%clk 0:02:59.7]} 3... Bf5 {[%clk 0:02:59.2]}
4. h4 {[%clk 0:03:01.1]} 4... h5 {[%clk 0:02:59.6]} 5. Bd3 {[%clk 0:03:02.8]}
5... Bxd3 {[%clk 0:03:00.2]} 6. Qxd3 {[%clk 0:03:04.7]} 6... e6 {[%clk
0:03:01.8]} 7. Nf3 {[%clk 0:03:05]} 7... Qa5+ {[%clk 0:02:49.7]} 8. Nc3 {[%clk
0:02:56.3]} 8... c5 {[%clk 0:02:48.8]} 9. Bd2 {[%clk 0:02:01.9]} 9... c4 {[%clk
0:02:12.6]} 10. Qe3 {[%clk 0:01:55.6]} 10... Nc6 {[%clk 0:02:12.9]} 11. O-O
{[%clk 0:01:50]} 11... Nh6 {[%clk 0:02:13.2]} 12. Ne2 {[%clk 0:00:54.1]} 12...
Qc7 {[%clk 0:02:08.7]} 13. Ng3 {[%clk 0:00:48.4]} 13... Ng4 {[%clk 0:02:04.2]}
14. Qf4 {[%clk 0:00:41.6]} 14... O-O-O {[%clk 0:01:29.2]} 15. b3 {[%clk
0:00:23.5]} 15... f6 {[%clk 0:01:24.8]} 16. bxc4 {[%clk 0:00:16.4]} 16... dxc4
{[%clk 0:01:22]} 17. exf6 {[%clk 0:00:13.1]} 17... Qxf4 {[%clk 0:01:14.1]} 18.
Bxf4 {[%clk 0:00:13.6]} 18... gxf6 {[%clk 0:01:15.6]} 19. c3 {[%clk 0:00:13.3]}
19... Ne7 {[%clk 0:01:08.6]} 20. Rfe1 {[%clk 0:00:13.6]} 20... Nd5 {[%clk
0:01:09.2]} 21. Bd2 {[%clk 0:00:14.6]} 21... Kd7 {[%clk 0:01:08.2]} 22. Rab1
{[%clk 0:00:14.6]} 22... b6 {[%clk 0:01:08.5]} 23. a4 {[%clk 0:00:15.7]} 23...
Bd6 {[%clk 0:01:04.8]} 24. Ne4 {[%clk 0:00:15.2]} 24... Rhg8 {[%clk 0:01:05.2]}
25. a5 {[%clk 0:00:15.1]} 25... Rg6 {[%clk 0:01:03.2]} 26. axb6 {[%clk
0:00:15.2]} 26... axb6 {[%clk 0:01:02.7]} 27. Ra1 {[%clk 0:00:15.5]} 27... Rdg8
{[%clk 0:01:03.3]} 28. g3 {[%clk 0:00:12.9]} 28... Nxf2 {[%clk 0:00:47]} 29.
Kxf2 {[%clk 0:00:09.6]} 29... Bxg3+ {[%clk 0:00:46.9]} 30. Nxg3 {[%clk
0:00:11.5]} 30... Rxg3 {[%clk 0:00:48]} 31. Rg1 {[%clk 0:00:13.3]} 31... Rxg1
{[%clk 0:00:49]} 32. Rxg1 {[%clk 0:00:14.9]} 32... Rxg1 {[%clk 0:00:49.8]} 33.
Nxg1 {[%clk 0:00:12.3]} 33... Ke7 {[%clk 0:00:48.9]} 34. Ne2 {[%clk 0:00:11.8]}
34... Kf7 {[%clk 0:00:49.2]} 35. Nf4 {[%clk 0:00:11.6]} 35... Nxf4 {[%clk
0:00:49.6]} 36. Bxf4 {[%clk 0:00:13.2]} 36... Kg6 {[%clk 0:00:51.2]} 37. Kf3
{[%clk 0:00:11]} 37... Kf5 {[%clk 0:00:52.6]} 38. Bc7 {[%clk 0:00:11.2]} 38...
b5 {[%clk 0:00:53.5]} 39. Bd6 {[%clk 0:00:10.3]} 39... Kg6 {[%clk 0:00:47.5]}
40. Kf4 {[%clk 0:00:10.4]} 40... Kf7 {[%clk 0:00:48.5]} 41. Ke4 {[%clk
0:00:09.9]} 41... Ke8 {[%clk 0:00:47]} 42. d5 {[%clk 0:00:10.6]} 42... Kd7
{[%clk 0:00:48]} 43. Bb4 {[%clk 0:00:09]} 43... exd5+ {[%clk 0:00:35.9]} 44.
Kxd5 {[%clk 0:00:10.1]} 44... Ke8 {[%clk 0:00:21.5]} 45. Ke6 {[%clk 0:00:11.1]}
1-0

[Event "*** Titled Tuesday Blitz"]
[Site "Chess.com"]
[Date "2019.10.01"]
[Round "5"]
[White "Tjktiger"]
[Black "eldur16"]
[Result "1-0"]
[WhiteElo "2811"]
[BlackElo "2628"]
[TimeControl "180+2"]
[EndTime "14:12:50 PDT"]
[Termination "Tjktiger won by resignation"]

1. c4 {[%clk 0:03:01.8]} 1... Nf6 {[%clk 0:02:59.6]} 2. Nc3 {[%clk 0:03:02.8]}
2... g6 {[%clk 0:02:59.8]} 3. g3 {[%clk 0:03:03.2]} 3... Bg7 {[%clk 0:03:00.4]}
4. Bg2 {[%clk 0:03:04.7]} 4... O-O {[%clk 0:03:01.4]} 5. d4 {[%clk 0:03:06.1]}
5... d6 {[%clk 0:03:02.3]} 6. Nf3 {[%clk 0:03:07.6]} 6... Nbd7 {[%clk
0:03:02.9]} 7. O-O {[%clk 0:03:08.9]} 7... e5 {[%clk 0:03:03.8]} 8. e4 {[%clk
0:03:10.5]} 8... exd4 {[%clk 0:03:04.5]} 9. Nxd4 {[%clk 0:03:11.2]} 9... Re8
{[%clk 0:03:05.6]} 10. h3 {[%clk 0:03:11.9]} 10... a6 {[%clk 0:03:06.6]} 11. Be3
{[%clk 0:03:11.4]} 11... Rb8 {[%clk 0:03:06.3]} 12. b3 {[%clk 0:03:12.7]} 12...
c5 {[%clk 0:03:01.4]} 13. Nde2 {[%clk 0:03:13.7]} 13... b5 {[%clk 0:03:01.3]}
14. Qxd6 {[%clk 0:03:14.7]} 14... b4 {[%clk 0:02:58.4]} 15. Na4 {[%clk
0:03:15.8]} 15... Nxe4 {[%clk 0:02:51.6]} 16. Bxe4 {[%clk 0:03:17.6]} 16... Bxa1
{[%clk 0:02:51]} 17. Rxa1 {[%clk 0:02:49.5]} 17... Rxe4 {[%clk 0:02:50.3]} 18.
Nxc5 {[%clk 0:02:12.8]} 18... Re8 {[%clk 0:02:35.4]} 19. Rd1 {[%clk 0:01:32.1]}
19... Qe7 {[%clk 0:02:35.8]} 20. Nxd7 {[%clk 0:00:55.3]} 20... Bxd7 {[%clk
0:02:34.9]} 21. Nf4 {[%clk 0:00:45]} 21... Bf5 {[%clk 0:01:16.5]} 22. Qxe7
{[%clk 0:00:19]} 22... Rxe7 {[%clk 0:01:17.1]} 23. Nd5 {[%clk 0:00:19.5]} 23...
Re6 {[%clk 0:01:17]} 24. g4 {[%clk 0:00:18.9]} 24... Be4 {[%clk 0:01:13.5]} 25.
Bf4 {[%clk 0:00:14.9]} 25... Rc8 {[%clk 0:00:52.5]} 26. Nxb4 {[%clk 0:00:12.9]}
26... Rce8 {[%clk 0:00:42.2]} 27. Kh2 {[%clk 0:00:11.6]} 27... a5 {[%clk
0:00:35.5]} 28. Nd5 {[%clk 0:00:11.9]} 28... Bf3 {[%clk 0:00:29.1]} 29. Rd3
{[%clk 0:00:11.4]} 29... Bxd5 {[%clk 0:00:26.5]} 30. cxd5 {[%clk 0:00:11.8]}
30... Re2 {[%clk 0:00:27.2]} 31. Kg3 {[%clk 0:00:11.3]} 31... Rd8 {[%clk
0:00:25.2]} 32. a4 {[%clk 0:00:10.3]} 32... Rd7 {[%clk 0:00:21.2]} 33. Be3
{[%clk 0:00:09.3]} 33... f6 {[%clk 0:00:21.1]} 34. Bb6 {[%clk 0:00:09.3]} 34...
Re5 {[%clk 0:00:20.5]} 35. d6 {[%clk 0:00:09]} 35... Kf7 {[%clk 0:00:20.5]} 36.
f4 {[%clk 0:00:09.9]} 36... Re6 {[%clk 0:00:20.6]} 37. Bc7 {[%clk 0:00:10.7]}
37... f5 {[%clk 0:00:19.9]} 38. g5 {[%clk 0:00:10.6]} 38... Ke8 {[%clk
0:00:13.2]} 39. Kf3 {[%clk 0:00:11]} 39... Kf7 {[%clk 0:00:12.7]} 40. h4 {[%clk
0:00:12]} 40... Re1 {[%clk 0:00:11.2]} 41. Bxa5 {[%clk 0:00:11.6]} 41... Ke6
{[%clk 0:00:12]} 42. Bxe1 {[%clk 0:00:11.6]} 1-0

[Event "*** Titled Tuesday Blitz"]
[Site "Chess.com"]
[Date "2019.10.01"]
[Round "5"]
[White "Samantha_Ross"]
[Black "Me_ch_an"]
[Result "0-1"]
[WhiteElo "2060"]
[BlackElo "2360"]
[TimeControl "180+2"]
[EndTime "14:12:56 PDT"]
[Termination "Me_ch_an won by checkmate"]

1. c4 {[%clk 0:03:01.9]} 1... e5 {[%clk 0:03:00.3]} 2. Nf3 {[%clk 0:03:00.5]}
2... Nc6 {[%clk 0:03:01.1]} 3. d4 {[%clk 0:03:00]} 3... exd4 {[%clk 0:02:56.4]}
4. Nxd4 {[%clk 0:03:01.9]} 4... Nxd4 {[%clk 0:02:55.1]} 5. Qxd4 {[%clk
0:03:03.8]} 5... Nf6 {[%clk 0:02:56.3]} 6. g3 {[%clk 0:03:02.8]} 6... d5 {[%clk
0:02:44]} 7. Bg2 {[%clk 0:02:49]} 7... c5 {[%clk 0:02:42.1]} 8. Qe5+ {[%clk
0:02:49.9]} 8... Be6 {[%clk 0:02:32.3]} 9. cxd5 {[%clk 0:02:38.6]} 9... Nxd5
{[%clk 0:02:34.2]} 10. O-O {[%clk 0:02:19]} 10... Qb8 {[%clk 0:01:44.8]} 11. Qh5
{[%clk 0:01:34.5]} 11... g6 {[%clk 0:01:31.6]} 12. Qh4 {[%clk 0:01:35.5]} 12...
Bg7 {[%clk 0:01:28.5]} 13. Qa4+ {[%clk 0:01:05.8]} 13... b5 {[%clk 0:01:17.4]}
14. Qh4 {[%clk 0:01:02.7]} 14... O-O {[%clk 0:01:09.2]} 15. Nc3 {[%clk
0:01:02.4]} 15... Nxc3 {[%clk 0:00:43.3]} 16. bxc3 {[%clk 0:01:04.3]} 16... Bxc3
{[%clk 0:00:41.3]} 17. Rb1 {[%clk 0:01:05]} 17... Bxa2 {[%clk 0:00:35.5]} 18.
Bf4 {[%clk 0:00:48.1]} 18... Qb6 {[%clk 0:00:21.9]} 19. Rbc1 {[%clk 0:00:43.8]}
19... Bf6 {[%clk 0:00:14.7]} 20. Bg5 {[%clk 0:00:26.7]} 20... Bxg5 {[%clk
0:00:14]} 21. Qxg5 {[%clk 0:00:28.6]} 21... Rac8 {[%clk 0:00:15]} 22. h4 {[%clk
0:00:26.7]} 22... h5 {[%clk 0:00:13.7]} 23. g4 {[%clk 0:00:24.8]} 23... c4
{[%clk 0:00:11.2]} 24. gxh5 {[%clk 0:00:23.9]} 24... Rc5 {[%clk 0:00:12.3]} 25.
Qe3 {[%clk 0:00:17.3]} 25... Rxh5 {[%clk 0:00:12.8]} 26. Qa3 {[%clk 0:00:18.8]}
26... Bb3 {[%clk 0:00:12.9]} 27. Ra1 {[%clk 0:00:18.9]} 27... Rxh4 {[%clk
0:00:13.4]} 28. Qxa7 {[%clk 0:00:19.1]} 28... Qxa7 {[%clk 0:00:14.5]} 29. Rxa7
{[%clk 0:00:19.8]} 29... c3 {[%clk 0:00:15.8]} 30. Rb7 {[%clk 0:00:20.6]} 30...
b4 {[%clk 0:00:15.4]} 31. Rb1 {[%clk 0:00:21.5]} 31... c2 {[%clk 0:00:15.7]} 32.
Rc1 {[%clk 0:00:22.6]} 32... Rd8 {[%clk 0:00:14.9]} 33. Bf1 {[%clk 0:00:15.3]}
33... Rd1 {[%clk 0:00:14.9]} 34. Rb8+ {[%clk 0:00:13.5]} 34... Kg7 {[%clk
0:00:15.3]} 35. Rxc2 {[%clk 0:00:15.4]} 35... Bxc2 {[%clk 0:00:16]} 36. f3
{[%clk 0:00:17.3]} 36... b3 {[%clk 0:00:15.1]} 37. Kf2 {[%clk 0:00:19.2]} 37...
Rb1 {[%clk 0:00:13.8]} 38. Bg2 {[%clk 0:00:19.2]} 38... b2 {[%clk 0:00:14.6]}
39. Kg3 {[%clk 0:00:19.8]} 39... Rd4 {[%clk 0:00:14.6]} 40. f4 {[%clk
0:00:19.9]} 40... Be4 {[%clk 0:00:14.9]} 41. Bh3 {[%clk 0:00:17.1]} 41... Rd2
{[%clk 0:00:15.6]} 42. Kf2 {[%clk 0:00:16.5]} 42... Rh1 {[%clk 0:00:14.2]} 43.
Bg2 {[%clk 0:00:13.1]} 43... Bxg2 {[%clk 0:00:14.5]} 44. Rxb2 {[%clk 0:00:14.2]}
44... Rxb2 {[%clk 0:00:14.7]} 45. Kxg2 {[%clk 0:00:16.1]} 45... Re1 {[%clk
0:00:14.5]} 46. Kg3 {[%clk 0:00:18]} 46... Rexe2 {[%clk 0:00:15.2]} 47. f5
{[%clk 0:00:19.9]} 47... gxf5 {[%clk 0:00:15.6]} 48. Kh4 {[%clk 0:00:18.5]}
48... Kf6 {[%clk 0:00:15.8]} 49. Kg3 {[%clk 0:00:19.3]} 49... Rb3+ {[%clk
0:00:16.3]} 50. Kf4 {[%clk 0:00:18.1]} 50... Re4# {[%clk 0:00:16.9]} 0-1